Cogmind - Beta 9.3 @@@ ROGUE MODE // 2020.01.15 @ 21:29:34 // Winter2019/RPGLIKE Player: Nalzok Result: Destroyed by G-47 Trooper with Particle Gun Performance ------------- Evolutions (2) 1000 Regions Visited (4) 800 Robots Destroyed (49) 245 Value Destroyed (1139) 1139 Prototype IDs (4) 80 Alien Tech Used (0) 0 Bonus (84) 84 TOTAL SCORE: 3348 Bonus ------- High Alert Combat Kills 84 Cogmind --------- Core Integrity 0/600 Matter 210/300 Energy 280/280 System Corruption 1% Temperature Cool (326) Movement Flying (102) Ox1 Location -8/Materials Parts ------- > --- POWER (1) -------- Cooled Ion Engine > --- PROPULSION (2) --- Improved Flight Unit Improved Flight Unit > --- UTILITY (4) ------ Improved Targeting Computer Target Analyzer Core Shielding Propulsion Shielding > --- WEAPON (2) ------- Precision Beam Rifle Assault Cannon > --- INVENTORY (2) ---- Improved Flight Unit Advanced EMP Blaster Peak State ------------ > --- POWER ------------ Cooled Ion Engine > --- PROPULSION ------- Improved Flight Unit Improved Flight Unit > --- UTILITY ---------- Improved Targeting Computer Target Analyzer Core Shielding Propulsion Shielding > --- WEAPON ----------- Precision Beam Rifle Assault Cannon > --- INVENTORY -------- Improved Flight Unit Advanced EMP Blaster [Rating: 23] Favorites ----------- Power Ion Engine Engine Ion Engine Power Core Light Nuclear Core Propulsion Improved Flight Unit Leg Aluminum Leg Flight Unit Improved Flight Unit Utility Core Shielding Device Advanced Sensor Array Processor Improved Targeting Computer Protection Core Shielding Weapon Improved Light Cannon Energy Gun Precision Beam Rifle Ballistic Gun Light Assault Rifle Ballistic Cannon Improved Light Cannon Launcher Grenade Launcher Build | -11 -10 -9 -9 -8 ------- Run | Scr Mat Mat Min Mat Slots Evolved 5 | . . 3 . 2 Power . | . . . . . Propulsion 1 | . . 1 . . Utility 3 | . . 1 . 2 Weapon 1 | . . 1 . . Parts Attached 31 | . 6 3 7 15 Power 3 | . . . 1 2 Engine 2 | . . . 1 1 Core 1 | . . . . 1 Reactor . | . . . . . Propulsion 7 | . 2 1 2 2 Treads . | . . . . . Leg 2 | . 2 . . . Wheel . | . . . . . Hover . | . . . . . Flight 5 | . . 1 2 2 Utility 9 | . 3 1 2 3 Device 3 | . 2 . . 1 Storage . | . . . . . Processor 2 | . . . . 2 Hackware . | . . . . . Protection 4 | . 1 1 2 . Artifact . | . . . . . Weapon 12 | . 1 1 2 8 Energy Gun 3 | . . . . 3 Energy Cannon . | . . . . . Ballistic Gun 3 | . . . 2 1 Ballistic Cannon 2 | . . 1 . 1 Launcher 4 | . 1 . . 3 Special Weapon . | . . . . . Impact Weapon . | . . . . . Slashing Weapon . | . . . . . Piercing Weapon . | . . . . . Special Melee Weapon . | . . . . . Unidentified Prototypes 4 | . . 1 . 3 Parts Lost . | . . . . . Power . | . . . . . Propulsion . | . . . . . Utility . | . . . . . Weapon . | . . . . . Highest Loss Streak . | . . . . . Average Slot Usage (%) 90 | . 85 88 94 98 Engine 18 | . 25 21 14 9 Leg 13 | . 23 21 1 . Flight 9 | . . . 26 21 Device 5 | . 10 . . 8 Processor 3 | . . . . 12 Protection 14 | . 1 19 22 22 Energy Gun 2 | . . . . 8 Ballistic Gun 6 | . 15 . 13 1 Ballistic Cannon 5 | . . 3 14 11 Launcher 9 | . 9 21 . 1 Naked Turns . | . . . . . Heaviest Build 17 | 6 9 13 13 17 Greatest Support 12 | 10 10 10 10 12 Greatest Overweight (x) 2 | . 2 2 1 1 Average Overweight (x) . | . . . . . Largest Inventory Capacity 2 | . . 2 2 2 Average Capacity . | . . . 2 2 Most Carried 2 | . . 1 2 2 Average Carried . | . . . 1 1 Final Capacity 2 | . . 2 2 2 Final Carried 2 | . . 1 2 2 Class Distribution -------------------- 91% | Mutant 8% | Sprinter Dominant Class ---------------- Mutant | -10/Materials Mutant | -9/Materials Mutant | -9/Mines Mutant | -8/Materials Resources | -11 -10 -9 -9 -8 ----------- Run | Scr Mat Mat Min Mat Matter Collected 890 | 200 179 192 104 215 Remotely . | . . . . . Salvage Created 1014 | . 222 340 12 440 Parts 79 | . 22 38 4 15 Haulers Intercepted 1 | . . . . 1 Recyclers Shooed 1 | . . 1 . . Parts Field Recycled . | . . . . . Retrieved Matter . | . . . . . Parts Self-Destructed . | . . . . . Prevented . | . . . . . Kills | -11 -10 -9 -9 -8 ------- Run | Scr Mat Mat Min Mat Combat Hostiles Destroyed 38 | . 9 18 3 8 Guns 6 | . 5 . . 1 Cannons 7 | . . 1 1 5 AOE 25 | . 4 17 2 2 Classes Destroyed 9 | . 3 4 . 2 Worker 2 | . . 2 . . Builder 4 | . . 4 . . Hauler 1 | . . . . 1 Operator 1 | . . . . 1 Watcher 3 | . 2 1 . . Swarmer 17 | . 6 8 3 . Grunt 15 | . 3 7 . 5 Brawler 3 | . . 1 . 2 Sentry 3 | . . 2 . 1 Best Kill Streak 16 | . 4 16 3 3 Combat Bots Only 11 | . 4 11 3 2 Max Kills in Single Turn 4 | . 2 4 2 2 Gunslinging . | . . . . . Exploded 4 | . 2 4 2 1 Melee . | . . . . . Uniques/NPCs Destroyed . | . . . . . Combat | -11 -10 -9 -9 -8 -------- Run | Scr Mat Mat Min Mat Damage Taken 1209 | . 284 302 87 536 Core 966 | . 243 236 70 417 Absorbed by Shields . | . . . . . Redirected to Core 634 | . 135 185 42 272 Core Remaining (%) 79 | 100 72 . 67 . Volleys Fired 83 | . 29 19 5 30 Largest 2 | . 1 1 2 2 Hottest 105 | . 30 39 69 105 Shots Fired 97 | . 29 19 10 39 Gun 29 | . 19 . 4 6 Cannon 37 | . . 3 5 29 Launcher 31 | . 10 16 1 4 Special . | . . . . . Kinetic 60 | . 19 3 9 29 Thermal 6 | . . . . 6 Explosive 27 | . 10 16 1 . Electromagnetic 4 | . . . . 4 Robot Hit Streak 35 | . 9 15 7 35 Robot Miss Streak 3 | . 3 1 2 1 Penetration Max . | . . . . . Secondary Targets . | . . . . . Shots Hit Robots 74 | . 17 16 7 34 Core Hits 78 | . 16 46 3 13 Critical Hits 2 | . 1 . . 1 Critical Kills 1 | . 1 . . . Critical Parts Destroyed 1 | . . . . 1 Melee Attacks . | . . . . . Impact . | . . . . . Slashing . | . . . . . Piercing . | . . . . . Sneak Attacks . | . . . . . Combat Hostiles . | . . . . . Follow-up Attacks . | . . . . . Damage Inflicted 3028 | . 469 1440 243 876 Guns 261 | . 134 . 26 101 Cannons 628 | . . 58 87 483 Explosions 2139 | . 335 1382 130 292 Melee . | . . . . . Ramming . | . . . . . Kinetic 788 | . 134 58 113 483 Thermal 140 | . . . . 140 Explosive 1847 | . 335 1382 130 . Electromagnetic 253 | . . . . 253 Impact . | . . . . . Slashing . | . . . . . Piercing . | . . . . . Highest Corruption 1 | . . . . 1 Average Corruption 1 | . . . . 1 Corruption Purged . | . . . . . Effects 1 | . . . . 1 Energy Discharges 1 | . . . . 1 Overload Shots . | . . . . . Overflow Damage 8 | . . . 8 . Projectiles . | . . . . . Explosions 8 | . . . 8 . Melee . | . . . . . Knockbacks 11 | . . . 1 10 Impact . | . . . . . Kinetic 11 | . . . 1 10 Secondary . | . . . . . Self-Inflicted Damage 146 | . 64 . 37 45 Shots 6 | . 3 . 1 2 Rammed . | . . . . . Targets Rammed . | . . . . . Kicked . | . . . . . Crushed . | . . . . . Highest Temperature 317 | . 6 14 35 317 Average Temperature 39 | . 6 4 15 49 Received Heat Transfer 429 | . 48 111 9 261 Siege Activations . | . . . . . Robots Corrupted . | . . . . . Combat Hostiles . | . . . . . Parts Fried . | . . . . . Impact Corruptions . | . . . . . Robots Melted . | . . . . . Combat Hostiles . | . . . . . Parts Melted . | . . . . . Heat Transferred 272 | . . . . 272 Parts Sabotaged . | . . . . . Parts Stolen . | . . . . . Parts Stripped . | . . . . . Power Chain Reactions 2 | . . . . 2 Missiles Intercepted . | . . . . . Alert | -11 -10 -9 -9 -8 ------- Run | Scr Mat Mat Min Mat Peak Influence 648 | . 317 648 357 432 Average Influence 248 | . 129 316 349 260 Maximum Alert Level 2 | . 1 2 1 2 Low Security (%) 40 | . 72 51 . 11 Level 1 45 | . 27 7 100 82 Level 2 13 | . . 40 . 5 Level 3 . | . . . . . Level 4 . | . . . . . Level 5 . | . . . . . High Security . | . . . . . Max Security . | . . . . . Squads Dispatched 4 | . 3 1 . . Investigation 1 | . 1 . . . Extermination . | . . . . . Reinforcement 3 | . 2 1 . . Assault . | . . . . . Garrison . | . . . . . Intercept . | . . . . . Construction Impeded 1 | . . 1 . . Haulers Reinforced . | . . . . . Stealth | -11 -10 -9 -9 -8 --------- Run | Scr Mat Mat Min Mat Distress Signals 4 | . 1 3 . . Communications Jammed . | . . . . . Distress Signals . | . . . . . Times Spotted 55 | . 17 22 4 12 Peak Tracking Total 7 | . 4 7 3 3 Tactical Retreats 4 | . 1 . . 3 Traps | -11 -10 -9 -9 -8 ------- Run | Scr Mat Mat Min Mat Traps Triggered 2 | . 1 . . 1 Indirectly 1 | . . . . 1 Trap Hack Attempts . | . . . . . Triggered . | . . . . . Disarmed . | . . . . . Reprogrammed . | . . . . . Reused . | . . . . . Traps Extracted . | . . . . . Installed . | . . . . . Triggered . | . . . . . Machines | -11 -10 -9 -9 -8 ---------- Run | Scr Mat Mat Min Mat Machines Disabled 5 | . 1 1 1 2 Max in Single Turn 1 | . 1 1 1 1 Machines Sabotaged . | . . . . . Garrisons Compromised . | . . . . . Overloaded Fab Kills . | . . . . . Fab Network Shutdowns . | . . . . . Hacking | -11 -10 -9 -9 -8 --------- Run | Scr Mat Mat Min Mat Machines Accessed 6 | . 2 1 1 2 Terminals 5 | . 2 . 1 2 Fabricators . | . . . . . Repair Stations 1 | . . 1 . . Recycling Units . | . . . . . Scanalyzers . | . . . . . Garrison Access . | . . . . . Total Hacks 12 | . 5 2 1 4 Successful 6 | . 2 2 1 1 Failed 6 | . 3 . . 3 Catastrophic 1 | . 1 . . . Database Lockouts . | . . . . . Manual . | . . . . . Terminals 10 | . 5 . 1 4 Fabricators . | . . . . . Repair Stations 2 | . . 2 . . Recycling Units . | . . . . . Scanalyzers . | . . . . . Garrison Access . | . . . . . Terminal Hacks 4 | . 2 . 1 1 Branch Access Points 2 | . 1 . . 1 Security Status 1 | . 1 . . . Zone Layout 1 | . . . 1 . Fabricator Hacks . | . . . . . Repair Station Hacks 2 | . . 2 . . Scan Component 1 | . . 1 . . Repair 1 | . . 1 . . Recycling Unit Hacks . | . . . . . Scanalyzer . | . . . . . Garrison Access Hacks . | . . . . . Unauthorized Hacks . | . . . . . Terminals . | . . . . . Fabricators . | . . . . . Repair Stations . | . . . . . Recycling Units . | . . . . . Scanalyzers . | . . . . . Garrison Access . | . . . . . Data Cores Recovered 1 | . . . . 1 Used 1 | . . . . 1 Hacking Detections 3 | . 2 . . 1 Full Trace Events 1 | . 1 . . . Feedback Events . | . . . . . Feedback Blocked . | . . . . . Robot Schematics Acquired . | . . . . . Robots Built . | . . . . . Matter . | . . . . . Time . | . . . . . Total Robot Build Rating . | . . . . . Part Schematics Acquired . | . . . . . Parts Built . | . . . . . Matter . | . . . . . Time . | . . . . . Total Part Build Rating . | . . . . . Parts Repaired 1 | . . 1 . . Time 26 | . . 26 . . Parts Recycled . | . . . . . Recycled Matter . | . . . . . Retrieved Matter . | . . . . . Retrieved Components . | . . . . . Parts Scanalyzed . | . . . . . Part Schematics Acquired . | . . . . . Parts Damaged . | . . . . . Bothacking | -11 -10 -9 -9 -8 ------------ Run | Scr Mat Mat Min Mat Used RIF Installer . | . . . . . Robots Hacked . | . . . . . Non-combat . | . . . . . Combat . | . . . . . Robot Hacks Applied . | . . . . . Relay Couplers Released . | . . . . . Robots Rewired . | . . . . . Allies Hacked . | . . . . . Hacks Repelled . | . . . . . Allies | -11 -10 -9 -9 -8 -------- Run | Scr Mat Mat Min Mat Total Allies . | . . . . . Largest Group . | . . . . . Highest-Rated Group . | . . . . . Highest-Rated Ally . | . . . . . Total Orders . | . . . . . Ally Attacks . | . . . . . Total Damage . | . . . . . Kills . | . . . . . Allies Corrupted . | . . . . . Allies Melted . | . . . . . Intel | -11 -10 -9 -9 -8 ------- Run | Scr Mat Mat Min Mat Robot Analysis Total . | . . . . . Derelict Logs Recovered 1 | . . . 1 . Drone Launches . | . . . . . Drone Recoveries . | . . . . . Exploration | -11 -10 -9 -9 -8 ------------- Run | Scr Mat Mat Min Mat Turns Passed 1117 | . 339 329 143 306 Spaces Moved 940 | 1 199 198 290 252 Core 2 | . 2 . . . Treads . | . . . . . Legs 398 | 1 197 197 3 . Wheels . | . . . . . Hover . | . . . . . Flight 540 | . . 1 287 252 Fastest Speed 32 | 120 120 120 34 32 Average Speed 81 | 120 120 126 35 68 Slowest Speed 185 | 120 150 185 150 105 Overloaded Moves . | . . . . . Propulsion Burnouts . | . . . . . Robots Hopped . | . . . . . Cave-ins Triggered . | . . . . . Exploration Rate (%) 25 | 2 42 23 38 23 Regions Visited 4 Branch Regions 1 Pre-discovered Areas . | . . . . . Known Exits Taken . | . . . . . Unknown Exits Taken 4 | 1 1 1 1 . Scrap Searched 2 | . . . 2 . Spaces Dug . | . . . . . Terrain Destroyed 145 | . 50 82 6 7 Melee . | . . . . . Projectile 1 | . . . . 1 AOE 144 | . 50 82 6 6 Actions | -11 -10 -9 -9 -8 --------- Run | Scr Mat Mat Min Mat Total 1205 | . 273 257 321 354 Wait 98 | . 30 29 4 35 Move 936 | . 198 197 289 252 Hop . | . . . . . Pick Up 9 | . . 2 1 6 Fast Attach 20 | . 4 2 4 10 Attach 2 | . . 1 . 1 Detach 2 | . . . 2 . Swap 9 | . 2 . 3 4 Drop 25 | . 4 . 5 16 Fire 83 | . 29 19 5 30 Melee . | . . . . . Ram . | . . . . . Kick . | . . . . . Crush . | . . . . . Escape Stasis . | . . . . . Rewire . | . . . . . Trap . | . . . . . Miscellaneous 21 | . 6 7 8 . Route ------- -11/Scrapyard -10/Materials (discovered 2 exits: *Mat / Min) -9/Materials -9/Mines -8/Materials History --------- Turn | Location | Event 1 | -11/Scrapyard | Discovered new exit (range 0) 1 | -11/Scrapyard | Entered Materials 95 | -10/Materials | Identified exit to Mines 295 | -10/Materials | Discovered new exit (range 11) 321 | -10/Materials | Build established: Mutant 340 | -10/Materials | Entered another Materials area 342 | -9/Materials | Reached level 2 384 | -9/Materials | Repaired Core Shielding 501 | -9/Materials | Reached level 3 545 | -9/Materials | Discovered new exit (range 16) 562 | -9/Materials | Upgraded with Propulsion slot (x1) 562 | -9/Materials | Upgraded with Utility slot (x1) 562 | -9/Materials | Upgraded with Weapon slot (x1) 569 | -9/Materials | Destroyed 11 combat bots 578 | -9/Materials | Core integrity fell below 50% 590 | -9/Materials | Reached level 4 622 | -9/Materials | Destroyed 7 combat bots 669 | -9/Materials | Entered Mines 680 | -9/Mines | Reached level 5 709 | -9/Mines | Joined a pair of Derelicts in attacking an 0b10 outpost 718 | -9/Mines | Learned Materials stockpile data 755 | -9/Mines | Discovered new exit (range 6) 812 | -9/Mines | Entered Materials 814 | -8/Materials | Reached level 6 816 | -8/Materials | Upgraded with Utility slot (x2) 931 | -8/Materials | Core integrity fell below 50% 1103 | -8/Materials | Core integrity fell below 20% 1118 | -8/Materials | Destroyed by G-47 Trooper with Particle Gun Last Messages --------------- 01060_ U-05 Engineer lays Concrete. 01062_ Dropped Adv. Sensor Array. 01063_ K-01 Serf cleans the Material Processor. 01064_ U-05 Engineer lays Concrete. 01065_ Acquired Target Analyzer. 01067_ U-05 Engineer lays Concrete. 01085_ Dropped Imp. Light Cannon. 01091_ Y-45 Defender destroyed. 01091_ K-01 Serf collects debris. 01093_ B-36 Bruiser destroyed. 01095_ K-01 Serf collects debris. 01099_ Connecting with Terminal... 01100_ Terminal disabled. 01102_ K-01 Serf collects debris. 01102_ G-47 Trooper knocked back. 01102_ K-01 Serf collects debris. 01107_ G-47 Trooper knocked back. 01113_ Destroyed Lgt. Nuclear Core. 01113_ G-47 Trooper knocked back. 01116_ G-47 Trooper destroyed. Map ----- +----------------------------------------------------+ | ???# """"" ############ ???????????????? | | ???# *= """ ??????????????? | | ???# / % ??????????????? | | ???# % ^ ?????????????? | | ???###### """ ?????????????? | | ????????## """"" ?????????????? | | ?######### ^ """"" ##### ######????????????????? | | ?# """ ## """"" #???? ??????????????????????? | | ?# """ ## """ #???? ??????????????????????? | | ?# """ ##^ ^ #???? #?????????????????????? | | ?# ## #?###k####??????????????????? | | ?#! ## #? #??????????????????? | | ?# #?? #??????????????????? | | #####+#### [ " #?? ! #??????????????????? | | [ [= #?? !%[ k+??????????????????? | | ^ =%= #?? = #??????????????????? | | #?? #??????????????????? | | ^ #?? ???????????????????? | | ] !!! ##############k #????????????????????? | | ! #????# # #????????????????????? | | ! ! ###### ] + +????????????????????? | | + ! # #????????????????????? | | [ #+####### #????????????????????? | | ####### #????????????????????? | | ! m #????????????????????? | | ################ @ #????????????????????? | | #??????????????# " #????????????????????? | | #??????????????# #????????????????????? | | #??????????????# [g%#????????????????????? | | #??????????????+ ; ???????????????????? | | #??????????????# # ??????????????????? | | #??????????????# a # ?????????????????? | | #??????????????# % #? ????????????????? | | #??????????????# """ = ;? ???????????????? | | #??????????????# """"" #??#+#???????????????? | | ###??????????????# """"" ??? #???????????????? | | ?????????????????# ????" ????+???????????????? | | ?????????????????# ?????? ????????????????????? | | ?????????????????? ??????? ????????????????????? | | ?????????????????????????? ???????????????????? | | ??????????????????????????;#?????????????????????? | | ?????????????????????????????????????????????????? | | ?????????????????????????????????????????????????? | | ?????????????????????????????????????????????????? | | ?????????????????????????????????????????????????? | | ?????????????????????????????????????????????????? | | ?????????????????????????????????????????????????? | | ?????????????????????????????????????????????????? | | ?????????????????????????????????????????????????? | | ?????????????????????????????????????????????????? | +----------------------------------------------------+ Best States ------------- Heat Dissipation 35 Energy Generation 14 Energy Capacity 280 Matter Stores 300 Matter Capacity 300 Sight Range 16 Robot Scan Range 16 Terrain Scan Density 810 Core Shielding 20 Propulsion Shielding 33 Evasion (%) 63 Targeting Accuracy 6 Target Analysis 5 Item Schematics ----------------- None Robot Schematics ------------------ None Fabricated ------------ Nothing Alien Tech Used ----------------- None Achievements -------------- None Challenges ------------ None RPGLIKE | -11 -10 -9 -9 -8 --------- Run | Scr Mat Mat Min Mat Levels Raised 5 | . . 3 1 1 XP Earned 11755 | 3000 1360 3795 925 2675 XP Spent 10010 | . . 3210 4900 1900 Upgrades 22 | . . 13 7 2 Propulsion Slot 1 | . . 1 . . Utility Slot 3 | . . 1 . 2 Weapon Slot 1 | . . 1 . . Inventory Capacity 2 | . . 2 . . Terrain Scan Density 8 | . . 8 . . Ranged Accuracy 7 | . . . 7 . Protomatter Created 169 | . 33 107 3 26 Integrity Restored 370 | . 94 120 156 . Core 354 | . 78 120 156 . Parts 16 | . 16 . . . Protomatter Decayed 28 | . . 28 . . Game ------ Seed InsulationFusionPerforator Manual? 0 Play Time 00:21:39 Cumulative 203.1 hours Start 2019.12.19 @ 19:53:02 End 2020.01.15 @ 21:29:34 Sessions 5 Manual Loads 0 Difficulty Rogue Special Mode Winter2019/RPGLIKE Game No. 330 Rogue 329 Adventurer 0 Explorer 1 Win Type - Total 1 Types 1/0/0/0/0/0/0 Lore% 59 Gallery% 76 Achievement% 46 Wizard Run 0 Options --------- ASCII 1 Keyboard 1 Movement Vi Keybinds 0 Fullscreen 1 Font 14/Cog Map View 72x52 Tactical HUD 1 Map Filters NONE Filters LOW_CONTRAST(13,24,33) Steam 0 RUN: d6bab8e8-588a-40ed-9c4b-ba905df52c9d